[Event "Titled Tuesday Blitz May 17 Early 2022"]
[White "Meshkovs, Nikita"]
[Black "Gunina, Valentina"]
[WhiteFideId "11602740"]
[BlackFideId "4167570"]
[WhiteElo "2506"]
[BlackElo "2381"]
[Result "0-1"]
[Round "08"]
[TimeControl "180+1"]
[Date "2022.05.17"]
[WhiteClock "0:00:05"]
[BlackClock "0:00:58"]

1. e4 {[%clk 0:03:00]}  c6 {[%clk 0:02:59]} 2. d4 {[%clk 0:03:00]}  d5 {[%clk 0:03:00]} 3. e5 {[%clk 0:03:00]}  c5 {[%clk 0:03:00]} 4. dxc5 {[%clk 0:02:52]}  e6 {[%clk 0:02:59]} 5. Be3 {[%clk 0:02:50]}  Nd7 {[%clk 0:02:58]} 6. b4 {[%clk 0:02:45]}  a5 {[%clk 0:02:52]} 7. c3 {[%clk 0:02:42]}  Nxe5 {[%clk 0:02:52]} 8. Nd2 {[%clk 0:02:38]}  axb4 {[%clk 0:02:43]} 9. cxb4 {[%clk 0:02:39]}  Nc6 {[%clk 0:02:37]} 10. Bb5 {[%clk 0:02:35]}  Bd7 {[%clk 0:02:37]} 11. Bxc6 {[%clk 0:02:35]}  Bxc6 {[%clk 0:02:37]} 12. Ngf3 {[%clk 0:02:35]}  Ne7 {[%clk 0:02:31]} 13. a4 {[%clk 0:02:29]}  Nf5 {[%clk 0:02:31]} 14. O-O {[%clk 0:02:21]}  Be7 {[%clk 0:02:29]} 15. b5 {[%clk 0:02:14]}  Bd7 {[%clk 0:02:29]} 16. Rc1 {[%clk 0:02:10]}  O-O {[%clk 0:02:28]} 17. Bf4 {[%clk 0:01:50]}  Qa5 {[%clk 0:02:23]} 18. Ne5 {[%clk 0:01:34]}  Be8 {[%clk 0:02:24]} 19. c6 {[%clk 0:01:18]}  bxc6 {[%clk 0:02:21]} 20. bxc6 {[%clk 0:01:18]}  Bd6 {[%clk 0:02:15]} 21. g4 {[%clk 0:00:50]}  Qxa4 {[%clk 0:02:09]} 22. Qxa4 {[%clk 0:00:47]}  Rxa4 {[%clk 0:02:09]} 23. gxf5 {[%clk 0:00:47]}  Rxf4 {[%clk 0:02:08]} 24. c7 {[%clk 0:00:47]}  Bxc7 {[%clk 0:01:59]} 25. Rxc7 {[%clk 0:00:48]}  Rxf5 {[%clk 0:01:59]} 26. f4 {[%clk 0:00:28]}  f6 {[%clk 0:01:57]} 27. Ng4 {[%clk 0:00:23]}  d4 {[%clk 0:01:48]} 28. Ne4 {[%clk 0:00:21]}  h5 {[%clk 0:01:47]} 29. Ngf2 {[%clk 0:00:08]}  Rxf4 {[%clk 0:01:45]} 30. Rb1 {[%clk 0:00:09]}  Bg6 {[%clk 0:01:34]} 31. Rbb7 {[%clk 0:00:09]}  Rf7 {[%clk 0:01:34]} 32. Rc8+ {[%clk 0:00:07]}  Kh7 {[%clk 0:01:34]} 33. Rxf7 {[%clk 0:00:07]}  Bxf7 {[%clk 0:01:34]} 34. Rd8 {[%clk 0:00:07]}  e5 {[%clk 0:01:34]} 35. Ng3 {[%clk 0:00:05]}  h4 {[%clk 0:01:32]} 36. Ne2 {[%clk 0:00:04]}  Rf3 {[%clk 0:01:33]} 37. Kg2 {[%clk 0:00:04]}  Re3 {[%clk 0:01:32]} 38. Ng1 {[%clk 0:00:04]}  g5 {[%clk 0:01:28]} 39. Ng4 {[%clk 0:00:03]}  Ra3 {[%clk 0:01:25]} 40. Nxf6+ {[%clk 0:00:04]}  Kg6 {[%clk 0:01:26]} 41. Rd6 {[%clk 0:00:04]}  Kf5 {[%clk 0:01:25]} 42. h3 {[%clk 0:00:04]}  Ra2+ {[%clk 0:01:24]} 43. Kf1 {[%clk 0:00:04]}  Bc4+ {[%clk 0:01:22]} 44. Ke1 {[%clk 0:00:04]}  Kf4 {[%clk 0:01:15]} 45. Ng4 {[%clk 0:00:03]}  Kg3 {[%clk 0:01:15]} 46. Rf6 {[%clk 0:00:03]}  Ra1+ {[%clk 0:01:15]} 47. Kd2 {[%clk 0:00:03]}  Rxg1 {[%clk 0:01:15]} 48. Nxe5 {[%clk 0:00:04]}  Bf1 {[%clk 0:01:13]} 49. Rf3+ {[%clk 0:00:04]}  Kh2 {[%clk 0:01:12]} 50. Rf5 {[%clk 0:00:04]}  Kxh3 {[%clk 0:01:10]} 51. Nf3 {[%clk 0:00:04]}  Rg2+ {[%clk 0:01:10]} 52. Ke1 {[%clk 0:00:03]}  Kg4 {[%clk 0:01:10]} 53. Nxg5 {[%clk 0:00:04]}  Kxf5 {[%clk 0:01:09]} 54. Nf3 {[%clk 0:00:04]}  Rg3 {[%clk 0:01:08]} 55. Nxh4+ {[%clk 0:00:03]}  Kg4 {[%clk 0:01:08]} 56. Ng6 {[%clk 0:00:02]}  Bd3 {[%clk 0:01:08]} 57. Ne5+ {[%clk 0:00:02]}  Kf5 {[%clk 0:01:08]} 58. Nc6 {[%clk 0:00:02]}  Ke4 {[%clk 0:01:09]} 59. Kf2 {[%clk 0:00:03]}  Rh3 {[%clk 0:01:08]} 60. Kg2 {[%clk 0:00:03]}  Rh6 {[%clk 0:01:09]} 61. Nb4 {[%clk 0:00:03]}  Be2 {[%clk 0:01:09]} 62. Kf2 {[%clk 0:00:03]}  d3 {[%clk 0:01:09]} 63. Ke1 {[%clk 0:00:03]}  Rh1+ {[%clk 0:01:07]} 64. Kd2 {[%clk 0:00:03]}  Rd1+ {[%clk 0:01:07]} 65. Kc3 {[%clk 0:00:03]}  d2 {[%clk 0:01:05]} 66. Nc2 {[%clk 0:00:02]}  Bh5 {[%clk 0:01:02]} 67. Nb4 {[%clk 0:00:02]}  Rb1 {[%clk 0:01:01]} 68. Nd3 {[%clk 0:00:02]}  d1=Q {[%clk 0:00:59]} 69. Nf2+ {[%clk 0:00:03]}  Ke3 {[%clk 0:00:59]} 70. Nxd1+ {[%clk 0:00:03]}  Rxd1 {[%clk 0:00:59]} 71. Kc4 {[%clk 0:00:04]}  Bf3 {[%clk 0:00:59]} 72. Kb3 {[%clk 0:00:05]}  Kd3 {[%clk 0:00:58]} 0-1


[Site "https://www.chess.com"]

[Event "Titled Tuesday Blitz May 17 Early 2022"]
[White "Rustemov, Alexander"]
[Black "Janaszak, Dawid"]
[WhiteFideId "4119002"]
[BlackFideId "1119206"]
[WhiteElo "2794"]
[BlackElo "2199"]
[Result "0-1"]
[Round "08"]
[TimeControl "180+1"]
[Date "2022.05.17"]
[WhiteClock "0:00:02"]
[BlackClock "0:00:36"]

1. d4 {[%clk 0:03:00]}  Nf6 {[%clk 0:02:59]} 2. c4 {[%clk 0:03:00]}  c5 {[%clk 0:02:58]} 3. Nf3 {[%clk 0:02:59]}  g6 {[%clk 0:02:52]} 4. Nc3 {[%clk 0:02:56]}  cxd4 {[%clk 0:02:50]} 5. Nxd4 {[%clk 0:02:55]}  Nc6 {[%clk 0:02:50]} 6. g3 {[%clk 0:02:55]}  Bg7 {[%clk 0:02:50]} 7. Bg2 {[%clk 0:02:55]}  O-O {[%clk 0:02:50]} 8. O-O {[%clk 0:02:55]}  Nxd4 {[%clk 0:02:44]} 9. Qxd4 {[%clk 0:02:55]}  d6 {[%clk 0:02:45]} 10. Qd3 {[%clk 0:02:55]}  Be6 {[%clk 0:02:45]} 11. Bd2 {[%clk 0:02:34]}  Nd7 {[%clk 0:02:35]} 12. b3 {[%clk 0:02:33]}  Nc5 {[%clk 0:02:31]} 13. Qe3 {[%clk 0:02:31]}  Qb6 {[%clk 0:02:12]} 14. Rab1 {[%clk 0:02:29]}  Rfe8 {[%clk 0:02:05]} 15. Rfc1 {[%clk 0:02:27]}  Bf5 {[%clk 0:02:04]} 16. Rb2 {[%clk 0:02:04]}  Nd7 {[%clk 0:01:58]} 17. Qxb6 {[%clk 0:02:00]}  Nxb6 {[%clk 0:01:58]} 18. e4 {[%clk 0:01:53]}  Be6 {[%clk 0:01:56]} 19. Rbc2 {[%clk 0:01:52]}  Rac8 {[%clk 0:01:43]} 20. Be3 {[%clk 0:01:47]}  h5 {[%clk 0:01:32]} 21. h3 {[%clk 0:01:44]}  Be5 {[%clk 0:01:29]} 22. f4 {[%clk 0:01:43]}  Bf6 {[%clk 0:01:21]} 23. Kf2 {[%clk 0:01:38]}  h4 {[%clk 0:01:07]} 24. g4 {[%clk 0:01:38]}  g5 {[%clk 0:01:08]} 25. fxg5 {[%clk 0:01:35]}  Be5 {[%clk 0:01:08]} 26. Ke2 {[%clk 0:01:31]}  Nd7 {[%clk 0:01:00]} 27. Nb5 {[%clk 0:01:07]}  a6 {[%clk 0:00:54]} 28. Nd4 {[%clk 0:01:07]}  Nc5 {[%clk 0:00:50]} 29. b4 {[%clk 0:00:59]}  Na4 {[%clk 0:00:45]} 30. Nf3 {[%clk 0:00:48]}  Bb2 {[%clk 0:00:42]} 31. Rb1 {[%clk 0:00:37]}  Nc3+ {[%clk 0:00:42]} 32. Kf2 {[%clk 0:00:14]}  Nxb1 {[%clk 0:00:34]} 33. Rxb2 {[%clk 0:00:14]}  Nc3 {[%clk 0:00:35]} 34. Bd4 {[%clk 0:00:03]}  Nd1+ {[%clk 0:00:35]} 35. Ke2 {[%clk 0:00:02]}  Nxb2 {[%clk 0:00:35]} 36. Bxb2 {[%clk 0:00:02]}  Rxc4 {[%clk 0:00:36]} 0-1


[Site "https://www.chess.com"]

[Event "Titled Tuesday Blitz May 17 Early 2022"]
[White "Salem, A.R. Saleh"]
[Black "Klekowski, Maciej"]
[WhiteFideId "9301348"]
[BlackFideId "1132717"]
[WhiteElo "2679"]
[BlackElo "2476"]
[Result "1-0"]
[Round "08"]
[TimeControl "180+1"]
[Date "2022.05.17"]
[WhiteClock "0:00:07"]
[BlackClock "0:00:01"]

1. d4 {[%clk 0:03:00]}  Nf6 {[%clk 0:02:59]} 2. c4 {[%clk 0:03:01]}  e6 {[%clk 0:02:59]} 3. Nc3 {[%clk 0:03:02]}  Bb4 {[%clk 0:02:57]} 4. a3 {[%clk 0:03:02]}  Bxc3+ {[%clk 0:02:57]} 5. bxc3 {[%clk 0:03:03]}  c5 {[%clk 0:02:57]} 6. f3 {[%clk 0:03:04]}  O-O {[%clk 0:02:55]} 7. e4 {[%clk 0:03:04]}  d6 {[%clk 0:02:54]} 8. Bg5 {[%clk 0:03:04]}  Nc6 {[%clk 0:02:42]} 9. Qd2 {[%clk 0:03:00]}  e5 {[%clk 0:02:35]} 10. d5 {[%clk 0:02:59]}  Na5 {[%clk 0:02:35]} 11. Rb1 {[%clk 0:02:38]}  h6 {[%clk 0:02:31]} 12. Be3 {[%clk 0:02:37]}  b6 {[%clk 0:02:31]} 13. g4 {[%clk 0:02:35]}  Ne8 {[%clk 0:01:46]} 14. h4 {[%clk 0:02:32]}  Ba6 {[%clk 0:01:43]} 15. Nh3 {[%clk 0:02:15]}  Bxc4 {[%clk 0:01:41]} 16. Qg2 {[%clk 0:01:38]}  Bxf1 {[%clk 0:01:34]} 17. Kxf1 {[%clk 0:01:39]}  Nc4 {[%clk 0:01:33]} 18. Bc1 {[%clk 0:01:40]}  Qd7 {[%clk 0:01:29]} 19. Qc2 {[%clk 0:01:19]}  b5 {[%clk 0:01:13]} 20. Nf2 {[%clk 0:01:15]}  Rb8 {[%clk 0:01:04]} 21. Kg2 {[%clk 0:01:02]}  a5 {[%clk 0:01:03]} 22. Qe2 {[%clk 0:01:01]}  a4 {[%clk 0:01:01]} 23. Rh3 {[%clk 0:00:58]}  Kh7 {[%clk 0:00:51]} 24. Nh1 {[%clk 0:00:56]}  g6 {[%clk 0:00:49]} 25. Ng3 {[%clk 0:00:55]}  Ng7 {[%clk 0:00:43]} 26. Kh2 {[%clk 0:00:23]}  Rg8 {[%clk 0:00:35]} 27. Rb2 {[%clk 0:00:17]}  h5 {[%clk 0:00:33]} 28. Rc2 {[%clk 0:00:15]}  Rbf8 {[%clk 0:00:22]} 29. Qd1 {[%clk 0:00:15]}  Ne8 {[%clk 0:00:14]} 30. Rg2 {[%clk 0:00:14]}  Nf6 {[%clk 0:00:13]} 31. Kg1 {[%clk 0:00:07]}  hxg4 {[%clk 0:00:12]} 32. Rhh2 {[%clk 0:00:07]}  gxf3 {[%clk 0:00:12]} 33. Qxf3 {[%clk 0:00:08]}  Ne8 {[%clk 0:00:05]} 34. h5 {[%clk 0:00:08]}  g5 {[%clk 0:00:06]} 35. Nf5 {[%clk 0:00:08]}  f6 {[%clk 0:00:06]} 36. h6 {[%clk 0:00:09]}  Qf7 {[%clk 0:00:06]} 37. Rg4 {[%clk 0:00:07]}  Qg6 {[%clk 0:00:06]} 38. Be3 {[%clk 0:00:07]}  Rf7 {[%clk 0:00:06]} 39. Bf2 {[%clk 0:00:07]}  Nxa3 {[%clk 0:00:06]} 40. Nh4 {[%clk 0:00:05]}  gxh4 {[%clk 0:00:06]} 41. Rxg6 {[%clk 0:00:05]}  Rxg6+ {[%clk 0:00:07]} 42. Kh1 {[%clk 0:00:06]}  Nc4 {[%clk 0:00:04]} 43. Qf5 {[%clk 0:00:06]}  a3 {[%clk 0:00:03]} 44. Rg2 {[%clk 0:00:06]}  Kh8 {[%clk 0:00:01]} 45. Qxg6 {[%clk 0:00:06]}  Rf8 {[%clk 0:00:01]} 46. h7 {[%clk 0:00:07]} 1-0


[Site "https://www.chess.com"]

[Event "Titled Tuesday Blitz May 17 Early 2022"]
[White "Sjugirov, Sanan"]
[Black "Sarana, Alexey"]
[WhiteFideId "4189302"]
[BlackFideId "24133795"]
[WhiteElo "2602"]
[BlackElo "2666"]
[Result "0-1"]
[Round "08"]
[TimeControl "180+1"]
[Date "2022.05.17"]
[WhiteClock "0:00:01"]
[BlackClock "0:00:55"]

1. Nf3 {[%clk 0:03:00]}  d5 {[%clk 0:02:39]} 2. e3 {[%clk 0:02:59]}  Nf6 {[%clk 0:02:39]} 3. c4 {[%clk 0:02:59]}  e6 {[%clk 0:02:39]} 4. Nc3 {[%clk 0:02:59]}  Bb4 {[%clk 0:02:38]} 5. d4 {[%clk 0:02:50]}  dxc4 {[%clk 0:02:31]} 6. Bxc4 {[%clk 0:02:47]}  c5 {[%clk 0:02:29]} 7. O-O {[%clk 0:02:37]}  O-O {[%clk 0:02:28]} 8. Qe2 {[%clk 0:02:24]}  Nc6 {[%clk 0:02:26]} 9. Rd1 {[%clk 0:02:22]}  cxd4 {[%clk 0:02:18]} 10. exd4 {[%clk 0:02:23]}  Nd5 {[%clk 0:02:19]} 11. Bd2 {[%clk 0:02:19]}  Nce7 {[%clk 0:02:17]} 12. Bd3 {[%clk 0:02:09]}  Bd7 {[%clk 0:02:03]} 13. a3 {[%clk 0:02:04]}  Bd6 {[%clk 0:01:53]} 14. Ne5 {[%clk 0:02:00]}  Bc6 {[%clk 0:01:49]} 15. Qh5 {[%clk 0:01:16]}  Ng6 {[%clk 0:01:48]} 16. Nxc6 {[%clk 0:01:01]}  bxc6 {[%clk 0:01:49]} 17. g3 {[%clk 0:00:58]}  Be7 {[%clk 0:01:46]} 18. Ne4 {[%clk 0:00:48]}  Qb6 {[%clk 0:01:44]} 19. Bc3 {[%clk 0:00:33]}  Rad8 {[%clk 0:01:37]} 20. Ng5 {[%clk 0:00:30]}  Bxg5 {[%clk 0:01:30]} 21. Qxg5 {[%clk 0:00:31]}  Rd7 {[%clk 0:01:29]} 22. h4 {[%clk 0:00:29]}  h6 {[%clk 0:01:28]} 23. Qg4 {[%clk 0:00:27]}  Nge7 {[%clk 0:01:27]} 24. Re1 {[%clk 0:00:22]}  Nxc3 {[%clk 0:01:25]} 25. bxc3 {[%clk 0:00:22]}  Nd5 {[%clk 0:01:22]} 26. Rac1 {[%clk 0:00:20]}  Qb2 {[%clk 0:01:21]} 27. Qe4 {[%clk 0:00:15]}  Nf6 {[%clk 0:01:19]} 28. Qxc6 {[%clk 0:00:14]}  Qxa3 {[%clk 0:01:20]} 29. Ra1 {[%clk 0:00:13]}  Qe7 {[%clk 0:01:19]} 30. Qf3 {[%clk 0:00:10]}  Rc8 {[%clk 0:01:17]} 31. Reb1 {[%clk 0:00:08]}  Nd5 {[%clk 0:01:09]} 32. c4 {[%clk 0:00:04]}  Nf6 {[%clk 0:01:09]} 33. Qe3 {[%clk 0:00:03]}  Rcd8 {[%clk 0:01:09]} 34. d5 {[%clk 0:00:03]}  exd5 {[%clk 0:01:09]} 35. Qxe7 {[%clk 0:00:04]}  Rxe7 {[%clk 0:01:10]} 36. cxd5 {[%clk 0:00:04]}  Nxd5 {[%clk 0:01:09]} 37. Bf1 {[%clk 0:00:05]}  Nf6 {[%clk 0:01:08]} 38. Rb2 {[%clk 0:00:05]}  g6 {[%clk 0:01:08]} 39. Rba2 {[%clk 0:00:05]}  Rdd7 {[%clk 0:01:08]} 40. Bh3 {[%clk 0:00:06]}  Rc7 {[%clk 0:01:08]} 41. Bg2 {[%clk 0:00:07]}  h5 {[%clk 0:01:09]} 42. Bf3 {[%clk 0:00:08]}  Kg7 {[%clk 0:01:09]} 43. Ra5 {[%clk 0:00:07]}  Ne8 {[%clk 0:01:08]} 44. Ra6 {[%clk 0:00:08]}  Nf6 {[%clk 0:01:06]} 45. R6a5 {[%clk 0:00:08]}  Nh7 {[%clk 0:01:05]} 46. Kg2 {[%clk 0:00:08]}  Nf8 {[%clk 0:01:06]} 47. Ra6 {[%clk 0:00:07]}  Ne6 {[%clk 0:01:06]} 48. R6a5 {[%clk 0:00:07]}  Nd4 {[%clk 0:01:05]} 49. Bd1 {[%clk 0:00:06]}  Re1 {[%clk 0:01:04]} 50. R5a4 {[%clk 0:00:06]}  Nf5 {[%clk 0:00:59]} 51. Bf3 {[%clk 0:00:03]}  Ree7 {[%clk 0:00:59]} 52. R1a2 {[%clk 0:00:03]}  Red7 {[%clk 0:00:58]} 53. Ra5 {[%clk 0:00:03]}  Nd4 {[%clk 0:00:59]} 54. Be4 {[%clk 0:00:03]}  Nb3 {[%clk 0:00:55]} 55. R5a3 {[%clk 0:00:02]}  Nc5 {[%clk 0:00:55]} 56. Bf3 {[%clk 0:00:02]}  Ne6 {[%clk 0:00:55]} 57. Ra4 {[%clk 0:00:02]}  Nd4 {[%clk 0:00:55]} 58. Be4 {[%clk 0:00:02]}  Nb5 {[%clk 0:00:54]} 59. Rb2 {[%clk 0:00:01]}  Nc3 {[%clk 0:00:55]} 60. Rab4 {[%clk 0:00:01]}  a5 {[%clk 0:00:55]} 0-1


[Site "https://www.chess.com"]

[Event "Titled Tuesday Blitz May 17 Early 2022"]
[White "Slugin, Sergey"]
[Black "Rostovtsev, Dmitry"]
[WhiteFideId "4122569"]
[BlackFideId "34278320"]
[WhiteElo "2358"]
[BlackElo "2274"]
[Result "0-1"]
[Round "08"]
[TimeControl "180+1"]
[Date "2022.05.17"]
[WhiteClock "0:00:04"]
[BlackClock "0:00:16"]

1. c4 {[%clk 0:03:00]}  e5 {[%clk 0:02:58]} 2. Nc3 {[%clk 0:03:00]}  Bb4 {[%clk 0:02:58]} 3. Nd5 {[%clk 0:03:00]}  Be7 {[%clk 0:02:59]} 4. e3 {[%clk 0:03:00]}  Nf6 {[%clk 0:02:57]} 5. Ne2 {[%clk 0:03:00]}  Nxd5 {[%clk 0:02:54]} 6. cxd5 {[%clk 0:03:01]}  O-O {[%clk 0:02:55]} 7. g3 {[%clk 0:03:01]}  d6 {[%clk 0:02:51]} 8. Bg2 {[%clk 0:03:01]}  Nd7 {[%clk 0:02:51]} 9. d4 {[%clk 0:03:00]}  exd4 {[%clk 0:02:44]} 10. exd4 {[%clk 0:02:56]}  Bg5 {[%clk 0:02:36]} 11. O-O {[%clk 0:02:55]}  Be7 {[%clk 0:02:21]} 12. Be3 {[%clk 0:02:49]}  Nf6 {[%clk 0:02:20]} 13. Rc1 {[%clk 0:02:46]}  Bg4 {[%clk 0:02:19]} 14. h3 {[%clk 0:02:43]}  Bh5 {[%clk 0:02:18]} 15. Qd2 {[%clk 0:02:41]}  Bg6 {[%clk 0:02:12]} 16. Nf4 {[%clk 0:02:36]}  Be4 {[%clk 0:02:12]} 17. Bxe4 {[%clk 0:02:37]}  Nxe4 {[%clk 0:02:13]} 18. Qc2 {[%clk 0:02:38]}  Nf6 {[%clk 0:02:07]} 19. Qxc7 {[%clk 0:02:38]}  Rb8 {[%clk 0:02:03]} 20. h4 {[%clk 0:02:15]}  Qxc7 {[%clk 0:01:58]} 21. Rxc7 {[%clk 0:02:15]}  Bd8 {[%clk 0:01:59]} 22. Rc2 {[%clk 0:02:13]}  Bb6 {[%clk 0:01:59]} 23. f3 {[%clk 0:01:55]}  Rfe8 {[%clk 0:01:57]} 24. Bf2 {[%clk 0:01:55]}  g6 {[%clk 0:01:46]} 25. g4 {[%clk 0:01:53]}  h6 {[%clk 0:01:46]} 26. g5 {[%clk 0:01:22]}  hxg5 {[%clk 0:01:46]} 27. hxg5 {[%clk 0:01:23]}  Nh7 {[%clk 0:01:46]} 28. Nh3 {[%clk 0:01:23]}  Bd8 {[%clk 0:01:35]} 29. Bh4 {[%clk 0:00:55]}  Bb6 {[%clk 0:01:30]} 30. Rd1 {[%clk 0:00:46]}  Re7 {[%clk 0:01:23]} 31. Bg3 {[%clk 0:00:44]}  Rd8 {[%clk 0:01:21]} 32. Kf2 {[%clk 0:00:42]}  Kg7 {[%clk 0:01:16]} 33. Re2 {[%clk 0:00:42]}  Rc7 {[%clk 0:01:13]} 34. b3 {[%clk 0:00:30]}  Nf8 {[%clk 0:00:50]} 35. Bf4 {[%clk 0:00:27]}  Rcd7 {[%clk 0:00:46]} 36. Be3 {[%clk 0:00:25]}  Rc8 {[%clk 0:00:44]} 37. Nf4 {[%clk 0:00:21]}  Nh7 {[%clk 0:00:42]} 38. Nd3 {[%clk 0:00:20]}  Rc3 {[%clk 0:00:40]} 39. Kg3 {[%clk 0:00:16]}  Re7 {[%clk 0:00:36]} 40. Kf2 {[%clk 0:00:14]}  Kg8 {[%clk 0:00:34]} 41. f4 {[%clk 0:00:14]}  Nf8 {[%clk 0:00:30]} 42. Kf3 {[%clk 0:00:09]}  Nd7 {[%clk 0:00:28]} 43. Nf2 {[%clk 0:00:10]}  f5 {[%clk 0:00:27]} 44. Rd3 {[%clk 0:00:07]}  Rc8 {[%clk 0:00:22]} 45. Bd2 {[%clk 0:00:07]}  Rxe2 {[%clk 0:00:20]} 46. Kxe2 {[%clk 0:00:08]}  Kf7 {[%clk 0:00:21]} 47. Kf3 {[%clk 0:00:08]}  Rc2 {[%clk 0:00:20]} 48. Ke2 {[%clk 0:00:07]}  Rxa2 {[%clk 0:00:19]} 49. Rh3 {[%clk 0:00:06]}  Ba5 {[%clk 0:00:17]} 50. Rd3 {[%clk 0:00:04]}  Nb6 {[%clk 0:00:17]} 51. Ke3 {[%clk 0:00:03]}  Nxd5+ {[%clk 0:00:15]} 52. Ke2 {[%clk 0:00:04]}  Nxf4+ {[%clk 0:00:16]} 0-1


[Site "https://www.chess.com"]

[Event "Titled Tuesday Blitz May 17 Early 2022"]
[White "Visakh N R"]
[Black "Grischuk, Alexander"]
[WhiteFideId "25012223"]
[BlackFideId "4126025"]
[WhiteElo "2448"]
[BlackElo "2762"]
[Result "0-1"]
[Round "08"]
[TimeControl "180+1"]
[Date "2022.05.17"]
[WhiteClock "0:01:34"]
[BlackClock "0:01:03"]

1. c4 {[%clk 0:02:59]}  e5 {[%clk 0:02:59]} 2. g3 {[%clk 0:02:54]}  d6 {[%clk 0:02:59]} 3. Bg2 {[%clk 0:02:55]}  f5 {[%clk 0:02:59]} 4. d3 {[%clk 0:02:55]}  Nf6 {[%clk 0:02:58]} 5. Bg5 {[%clk 0:02:53]}  Be7 {[%clk 0:02:56]} 6. Nc3 {[%clk 0:02:53]}  O-O {[%clk 0:02:56]} 7. Nf3 {[%clk 0:02:54]}  Be6 {[%clk 0:02:43]} 8. Nd2 {[%clk 0:02:51]}  c6 {[%clk 0:02:43]} 9. b4 {[%clk 0:02:50]}  a6 {[%clk 0:02:40]} 10. Rb1 {[%clk 0:02:49]}  Nbd7 {[%clk 0:02:38]} 11. a4 {[%clk 0:02:49]}  d5 {[%clk 0:02:31]} 12. cxd5 {[%clk 0:02:48]}  cxd5 {[%clk 0:02:32]} 13. O-O {[%clk 0:02:48]}  Rc8 {[%clk 0:02:29]} 14. Na2 {[%clk 0:02:46]}  h6 {[%clk 0:02:20]} 15. Bxf6 {[%clk 0:02:44]}  Nxf6 {[%clk 0:02:21]} 16. d4 {[%clk 0:02:42]}  e4 {[%clk 0:02:21]} 17. Nb3 {[%clk 0:02:42]}  f4 {[%clk 0:02:02]} 18. Nc5 {[%clk 0:02:38]}  Bg4 {[%clk 0:02:02]} 19. f3 {[%clk 0:02:35]}  exf3 {[%clk 0:02:02]} 20. exf3 {[%clk 0:02:35]}  Bf5 {[%clk 0:02:02]} 21. Rb2 {[%clk 0:02:33]}  b6 {[%clk 0:02:02]} 22. Nxa6 {[%clk 0:02:23]}  fxg3 {[%clk 0:02:00]} 23. hxg3 {[%clk 0:02:24]}  Bd6 {[%clk 0:01:58]} 24. f4 {[%clk 0:02:19]}  Ne4 {[%clk 0:01:56]} 25. Rb3 {[%clk 0:02:09]}  Qe8 {[%clk 0:01:48]} 26. b5 {[%clk 0:02:05]}  Qg6 {[%clk 0:01:48]} 27. N6b4 {[%clk 0:02:02]}  Nxg3 {[%clk 0:01:46]} 28. Rff3 {[%clk 0:01:49]}  Nh5 {[%clk 0:01:41]} 29. Nxd5 {[%clk 0:01:49]}  Be4 {[%clk 0:01:26]} 30. Nac3 {[%clk 0:01:40]}  Bxf3 {[%clk 0:01:25]} 31. Qxf3 {[%clk 0:01:41]}  Nxf4 {[%clk 0:01:25]} 32. Nxf4 {[%clk 0:01:41]}  Rxf4 {[%clk 0:01:23]} 33. Qd5+ {[%clk 0:01:38]}  Kh8 {[%clk 0:01:23]} 34. Ne2 {[%clk 0:01:37]}  Rf5 {[%clk 0:01:05]} 35. Qe4 {[%clk 0:01:34]}  Re8 {[%clk 0:01:03]} 0-1


[Site "https://www.chess.com"]

[Event "Titled Tuesday Blitz May 17 Early 2022"]
[White "Wagh Suyog"]
[Black "Abdusattorov, Nodirbek"]
[WhiteFideId "25071688"]
[BlackFideId "14204118"]
[WhiteElo "2181"]
[BlackElo "2663"]
[Result "1-0"]
[Round "08"]
[TimeControl "180+1"]
[Date "2022.05.17"]
[WhiteClock "0:00:07"]
[BlackClock "0:00:41"]

1. e4 {[%clk 0:03:00]}  c5 {[%clk 0:02:59]} 2. Nf3 {[%clk 0:03:01]}  g6 {[%clk 0:03:00]} 3. d4 {[%clk 0:03:00]}  cxd4 {[%clk 0:03:01]} 4. Nxd4 {[%clk 0:03:00]}  Bg7 {[%clk 0:03:01]} 5. c4 {[%clk 0:03:00]}  Nc6 {[%clk 0:03:02]} 6. Be3 {[%clk 0:03:00]}  Qb6 {[%clk 0:03:02]} 7. Nb3 {[%clk 0:02:58]}  Qd8 {[%clk 0:03:02]} 8. Nc3 {[%clk 0:02:58]}  d6 {[%clk 0:03:01]} 9. Be2 {[%clk 0:02:58]}  Nf6 {[%clk 0:03:01]} 10. O-O {[%clk 0:02:58]}  O-O {[%clk 0:02:56]} 11. Rc1 {[%clk 0:02:57]}  a5 {[%clk 0:02:49]} 12. Nd4 {[%clk 0:02:52]}  Bd7 {[%clk 0:02:47]} 13. f3 {[%clk 0:02:50]}  Nxd4 {[%clk 0:02:47]} 14. Bxd4 {[%clk 0:02:50]}  Bc6 {[%clk 0:02:46]} 15. Kh1 {[%clk 0:02:50]}  a4 {[%clk 0:02:47]} 16. Qd2 {[%clk 0:02:43]}  Qa5 {[%clk 0:02:46]} 17. Rfd1 {[%clk 0:02:43]}  Nd7 {[%clk 0:02:46]} 18. Bxg7 {[%clk 0:02:34]}  Kxg7 {[%clk 0:02:47]} 19. Qe3 {[%clk 0:02:33]}  Qb6 {[%clk 0:02:45]} 20. Qd2 {[%clk 0:02:30]}  Rfc8 {[%clk 0:02:45]} 21. Bf1 {[%clk 0:02:29]}  Qc5 {[%clk 0:02:41]} 22. a3 {[%clk 0:02:25]}  Nb6 {[%clk 0:02:41]} 23. Na2 {[%clk 0:02:24]}  Bd7 {[%clk 0:02:36]} 24. Nb4 {[%clk 0:02:24]}  Be6 {[%clk 0:02:36]} 25. Qc3+ {[%clk 0:02:24]}  Kg8 {[%clk 0:02:36]} 26. Rd4 {[%clk 0:02:12]}  Rc7 {[%clk 0:02:30]} 27. Nd3 {[%clk 0:01:42]}  Qa5 {[%clk 0:02:28]} 28. c5 {[%clk 0:01:37]}  dxc5 {[%clk 0:02:21]} 29. Nxc5 {[%clk 0:01:37]}  Ba2 {[%clk 0:01:29]} 30. Rd8+ {[%clk 0:01:34]}  Rxd8 {[%clk 0:01:26]} 31. Qxa5 {[%clk 0:01:34]}  Rd6 {[%clk 0:01:23]} 32. Re1 {[%clk 0:01:20]}  Bb3 {[%clk 0:01:02]} 33. Nxb3 {[%clk 0:01:13]}  axb3 {[%clk 0:01:03]} 34. Qb4 {[%clk 0:01:13]}  Nd7 {[%clk 0:00:59]} 35. Qxb3 {[%clk 0:01:10]}  Nc5 {[%clk 0:01:00]} 36. Qb4 {[%clk 0:01:08]}  Ne6 {[%clk 0:01:00]} 37. h3 {[%clk 0:01:02]}  h5 {[%clk 0:00:57]} 38. e5 {[%clk 0:01:02]}  Rd4 {[%clk 0:00:57]} 39. Qb6 {[%clk 0:00:59]}  h4 {[%clk 0:00:57]} 40. b3 {[%clk 0:00:48]}  Rc2 {[%clk 0:00:53]} 41. Qxb7 {[%clk 0:00:30]}  Kf8 {[%clk 0:00:54]} 42. a4 {[%clk 0:00:26]}  Nf4 {[%clk 0:00:53]} 43. a5 {[%clk 0:00:24]}  Rdd2 {[%clk 0:00:53]} 44. e6 {[%clk 0:00:20]}  Nh5 {[%clk 0:00:49]} 45. Qb8+ {[%clk 0:00:14]}  Kg7 {[%clk 0:00:49]} 46. exf7 {[%clk 0:00:14]}  Ng3+ {[%clk 0:00:46]} 47. Kg1 {[%clk 0:00:09]}  Kxf7 {[%clk 0:00:46]} 48. Qf4+ {[%clk 0:00:08]}  Kg8 {[%clk 0:00:44]} 49. Qxh4 {[%clk 0:00:07]}  Nxf1 {[%clk 0:00:43]} 50. Kxf1 {[%clk 0:00:08]}  Rxg2 {[%clk 0:00:43]} 51. a6 {[%clk 0:00:08]}  Rh2 {[%clk 0:00:43]} 52. Qg3 {[%clk 0:00:06]}  Rh1+ {[%clk 0:00:43]} 53. Qg1 {[%clk 0:00:06]}  Rxg1+ {[%clk 0:00:43]} 54. Kxg1 {[%clk 0:00:07]}  Ra2 {[%clk 0:00:42]} 55. Re6 {[%clk 0:00:08]}  Kf7 {[%clk 0:00:42]} 56. Rb6 {[%clk 0:00:08]}  g5 {[%clk 0:00:40]} 57. b4 {[%clk 0:00:08]}  e6 {[%clk 0:00:37]} 58. b5 {[%clk 0:00:08]}  Kf6 {[%clk 0:00:38]} 59. Rb7 {[%clk 0:00:08]}  Kf5 {[%clk 0:00:39]} 60. a7 {[%clk 0:00:08]}  Kf4 {[%clk 0:00:40]} 61. b6 {[%clk 0:00:07]}  Kxf3 {[%clk 0:00:40]} 62. Rf7+ {[%clk 0:00:07]}  Kg3 {[%clk 0:00:40]} 63. b7 {[%clk 0:00:07]}  Rxa7 {[%clk 0:00:41]} 64. b8=Q+ {[%clk 0:00:06]}  Kxh3 {[%clk 0:00:41]} 65. Qxa7 {[%clk 0:00:07]} 1-0


[Site "https://www.chess.com"]